[Event "Titled Tuesday Blitz August 3 2021"]
[White "Dang, Hoang Son"]
[Black "Begunov, Konstantin"]
[WhiteFideId "12402435"]
[BlackFideId "4118510"]
[WhiteElo "2248"]
[BlackElo "2262"]
[Result "1-0"]
[Round "05"]
[TimeControl "180+1"]
[Date "2021.08.03"]
[WhiteClock "0:00:22"]
[BlackClock "0:00:15"]

1. d4 {[%clk 0:03:00]}  d5 {[%clk 0:02:59]} 2. c4 {[%clk 0:03:00]}  c6 {[%clk 0:02:59]} 3. Nf3 {[%clk 0:03:00]}  Nf6 {[%clk 0:03:00]} 4. e3 {[%clk 0:02:57]}  a6 {[%clk 0:03:00]} 5. Bd3 {[%clk 0:02:56]}  Bg4 {[%clk 0:02:59]} 6. b3 {[%clk 0:02:54]}  Nbd7 {[%clk 0:02:57]} 7. Bb2 {[%clk 0:02:52]}  e6 {[%clk 0:02:57]} 8. Nbd2 {[%clk 0:02:51]}  Bd6 {[%clk 0:02:57]} 9. Qc2 {[%clk 0:02:50]}  Qe7 {[%clk 0:02:55]} 10. h3 {[%clk 0:02:49]}  Bh5 {[%clk 0:02:54]} 11. O-O {[%clk 0:02:48]}  O-O {[%clk 0:02:53]} 12. Ne5 {[%clk 0:02:48]}  Rac8 {[%clk 0:02:48]} 13. e4 {[%clk 0:02:25]}  Bxe5 {[%clk 0:02:33]} 14. dxe5 {[%clk 0:02:24]}  Nxe4 {[%clk 0:02:34]} 15. Nxe4 {[%clk 0:02:24]}  dxe4 {[%clk 0:02:35]} 16. Bxe4 {[%clk 0:02:25]}  Bg6 {[%clk 0:02:33]} 17. Bxg6 {[%clk 0:02:25]}  fxg6 {[%clk 0:02:31]} 18. Rad1 {[%clk 0:02:21]}  Rfd8 {[%clk 0:02:23]} 19. Rd6 {[%clk 0:02:16]}  Nf8 {[%clk 0:01:48]} 20. Rfd1 {[%clk 0:02:13]}  Rd7 {[%clk 0:01:46]} 21. Ba3 {[%clk 0:02:08]}  Qe8 {[%clk 0:01:45]} 22. Bb4 {[%clk 0:02:03]}  Rcd8 {[%clk 0:01:42]} 23. Ba5 {[%clk 0:01:45]}  Rc8 {[%clk 0:01:29]} 24. Qd2 {[%clk 0:01:28]}  Rxd6 {[%clk 0:01:24]} 25. Qxd6 {[%clk 0:01:29]}  Qf7 {[%clk 0:01:17]} 26. Rd3 {[%clk 0:01:23]}  Qf5 {[%clk 0:01:07]} 27. Rf3 {[%clk 0:01:07]}  Qb1+ {[%clk 0:00:58]} 28. Kh2 {[%clk 0:01:07]}  Re8 {[%clk 0:00:54]} 29. Bb4 {[%clk 0:01:04]}  h6 {[%clk 0:00:53]} 30. Rxf8+ {[%clk 0:01:02]}  Rxf8 {[%clk 0:00:54]} 31. Qxf8+ {[%clk 0:01:03]}  Kh7 {[%clk 0:00:55]} 32. Qf7 {[%clk 0:00:59]}  Qe4 {[%clk 0:00:47]} 33. f4 {[%clk 0:00:59]}  g5 {[%clk 0:00:44]} 34. Bd2 {[%clk 0:00:44]}  Qd4 {[%clk 0:00:32]} 35. fxg5 {[%clk 0:00:35]}  hxg5 {[%clk 0:00:20]} 36. Qh5+ {[%clk 0:00:32]}  Kg8 {[%clk 0:00:19]} 37. Qxg5 {[%clk 0:00:32]}  b5 {[%clk 0:00:18]} 38. cxb5 {[%clk 0:00:32]}  cxb5 {[%clk 0:00:18]} 39. Bf4 {[%clk 0:00:31]}  a5 {[%clk 0:00:18]} 40. h4 {[%clk 0:00:30]}  a4 {[%clk 0:00:18]} 41. h5 {[%clk 0:00:30]}  Qe4 {[%clk 0:00:15]} 42. h6 {[%clk 0:00:23]}  g6 {[%clk 0:00:15]} 43. Qd8+ {[%clk 0:00:22]}  Kh7 {[%clk 0:00:15]} 44. Qe7+ {[%clk 0:00:21]}  Kh8 {[%clk 0:00:15]} 45. Qg7# {[%clk 0:00:22]} 1-0


[Site "https://www.chess.com"]

[Event "Titled Tuesday Blitz August 3 2021"]
[White "Darini, Pouria"]
[Black "Zhigalko, Sergei"]
[WhiteFideId "12502200"]
[BlackFideId "13502956"]
[WhiteElo "2489"]
[BlackElo "2662"]
[Result "0-1"]
[Round "05"]
[TimeControl "180+1"]
[Date "2021.08.03"]
[WhiteClock "0:00:04"]
[BlackClock "0:00:22"]

1. e4 {[%clk 0:03:00]}  c5 {[%clk 0:02:58]} 2. Nf3 {[%clk 0:03:00]}  Nc6 {[%clk 0:02:58]} 3. Bb5 {[%clk 0:02:57]}  Nf6 {[%clk 0:02:58]} 4. Nc3 {[%clk 0:02:55]}  Qc7 {[%clk 0:02:58]} 5. O-O {[%clk 0:02:48]}  Nd4 {[%clk 0:02:57]} 6. Nxd4 {[%clk 0:02:38]}  cxd4 {[%clk 0:02:57]} 7. Nd5 {[%clk 0:02:39]}  Nxd5 {[%clk 0:02:58]} 8. exd5 {[%clk 0:02:40]}  Qc5 {[%clk 0:02:58]} 9. c4 {[%clk 0:02:40]}  a6 {[%clk 0:02:59]} 10. Ba4 {[%clk 0:02:12]}  Qxc4 {[%clk 0:02:51]} 11. d3 {[%clk 0:02:09]}  Qxd5 {[%clk 0:02:50]} 12. Bb3 {[%clk 0:02:10]}  Qf5 {[%clk 0:02:48]} 13. Re1 {[%clk 0:01:39]}  e6 {[%clk 0:02:47]} 14. Re4 {[%clk 0:01:33]}  b5 {[%clk 0:02:26]} 15. Rf4 {[%clk 0:01:08]}  Qe5 {[%clk 0:02:21]} 16. Bd2 {[%clk 0:01:01]}  Bb7 {[%clk 0:02:10]} 17. Qg4 {[%clk 0:00:45]}  h5 {[%clk 0:01:55]} 18. Qh3 {[%clk 0:00:26]}  Rc8 {[%clk 0:01:41]} 19. Re1 {[%clk 0:00:24]}  Qxe1+ {[%clk 0:01:36]} 20. Bxe1 {[%clk 0:00:24]}  Rc1 {[%clk 0:01:36]} 21. f3 {[%clk 0:00:08]}  Bb4 {[%clk 0:00:58]} 22. Kf2 {[%clk 0:00:09]}  Bxe1+ {[%clk 0:00:52]} 23. Ke2 {[%clk 0:00:09]}  Ba5 {[%clk 0:00:53]} 24. Qg3 {[%clk 0:00:05]}  O-O {[%clk 0:00:40]} 25. Rxd4 {[%clk 0:00:06]}  Re1+ {[%clk 0:00:34]} 26. Kf2 {[%clk 0:00:04]}  Rb1 {[%clk 0:00:35]} 27. Ke2 {[%clk 0:00:04]}  Rxb2+ {[%clk 0:00:29]} 28. Kf1 {[%clk 0:00:05]}  Rc8 {[%clk 0:00:28]} 29. Bd1 {[%clk 0:00:04]}  Rc1 {[%clk 0:00:25]} 30. Qb8+ {[%clk 0:00:04]}  Bc8 {[%clk 0:00:22]} 0-1


[Site "https://www.chess.com"]

[Event "Titled Tuesday Blitz August 3 2021"]
[White "Diaz Perez, Michel Alejandro"]
[Black "Shahade, Gregory"]
[WhiteFideId "3517179"]
[BlackFideId "2009064"]
[WhiteElo "2337"]
[BlackElo "2720"]
[Result "0-1"]
[Round "05"]
[TimeControl "180+1"]
[Date "2021.08.03"]
[WhiteClock "0:00:59"]
[BlackClock "0:01:09"]

1. d4 {[%clk 0:03:00]}  Nf6 {[%clk 0:02:59]} 2. c4 {[%clk 0:03:01]}  g6 {[%clk 0:02:58]} 3. Nc3 {[%clk 0:03:00]}  d5 {[%clk 0:02:59]} 4. Nf3 {[%clk 0:02:58]}  Bg7 {[%clk 0:02:58]} 5. Bg5 {[%clk 0:02:59]}  Ne4 {[%clk 0:02:56]} 6. cxd5 {[%clk 0:02:59]}  Nxg5 {[%clk 0:02:54]} 7. Nxg5 {[%clk 0:03:00]}  O-O {[%clk 0:02:46]} 8. h4 {[%clk 0:02:55]}  c6 {[%clk 0:02:38]} 9. e3 {[%clk 0:02:37]}  cxd5 {[%clk 0:02:37]} 10. h5 {[%clk 0:02:34]}  e5 {[%clk 0:02:34]} 11. Nf3 {[%clk 0:02:30]}  exd4 {[%clk 0:02:17]} 12. Nxd4 {[%clk 0:02:28]}  Nc6 {[%clk 0:02:18]} 13. hxg6 {[%clk 0:02:12]}  hxg6 {[%clk 0:02:13]} 14. Nxc6 {[%clk 0:01:32]}  bxc6 {[%clk 0:02:11]} 15. Bd3 {[%clk 0:01:33]}  d4 {[%clk 0:02:00]} 16. Ne4 {[%clk 0:01:15]}  dxe3 {[%clk 0:01:55]} 17. Qc2 {[%clk 0:01:15]}  exf2+ {[%clk 0:01:49]} 18. Nxf2 {[%clk 0:01:14]}  Re8+ {[%clk 0:01:48]} 19. Kf1 {[%clk 0:01:13]}  Rb8 {[%clk 0:01:48]} 20. b3 {[%clk 0:01:11]}  Bxa1 {[%clk 0:01:42]} 21. Bxg6 {[%clk 0:01:09]}  Ba6+ {[%clk 0:01:39]} 22. Bd3 {[%clk 0:01:04]}  Bxd3+ {[%clk 0:01:33]} 23. Nxd3 {[%clk 0:01:05]}  Qf6+ {[%clk 0:01:12]} 24. Kg1 {[%clk 0:00:59]}  Bd4+ {[%clk 0:01:09]} 0-1


[Site "https://www.chess.com"]

[Event "Titled Tuesday Blitz August 3 2021"]
[White "Firat, Burak"]
[Black "Serikbay, Assel"]
[WhiteFideId "6305881"]
[BlackFideId "13706799"]
[WhiteElo "2531"]
[BlackElo "2044"]
[Result "0-1"]
[Round "05"]
[TimeControl "180+1"]
[Date "2021.08.03"]
[WhiteClock "0:00:12"]
[BlackClock "0:00:03"]

1. c4 {[%clk 0:03:00]}  e5 {[%clk 0:02:59]} 2. Nc3 {[%clk 0:03:00]}  Nf6 {[%clk 0:02:59]} 3. e3 {[%clk 0:02:58]}  d5 {[%clk 0:02:55]} 4. cxd5 {[%clk 0:02:58]}  Nxd5 {[%clk 0:02:54]} 5. Nf3 {[%clk 0:02:59]}  Nxc3 {[%clk 0:02:50]} 6. bxc3 {[%clk 0:03:00]}  Bd6 {[%clk 0:02:43]} 7. d4 {[%clk 0:02:58]}  exd4 {[%clk 0:02:42]} 8. cxd4 {[%clk 0:02:59]}  O-O {[%clk 0:02:40]} 9. Bc4 {[%clk 0:02:59]}  c5 {[%clk 0:02:40]} 10. dxc5 {[%clk 0:02:40]}  Qa5+ {[%clk 0:02:28]} 11. Bd2 {[%clk 0:02:37]}  Qxc5 {[%clk 0:02:28]} 12. Rc1 {[%clk 0:02:38]}  Qh5 {[%clk 0:02:28]} 13. Bc3 {[%clk 0:02:15]}  Qg6 {[%clk 0:02:02]} 14. Nh4 {[%clk 0:01:30]}  Qh6 {[%clk 0:02:01]} 15. g3 {[%clk 0:01:24]}  Bh3 {[%clk 0:01:58]} 16. Qf3 {[%clk 0:01:23]}  Nc6 {[%clk 0:01:55]} 17. Nf5 {[%clk 0:01:21]}  Bxf5 {[%clk 0:01:51]} 18. Qxf5 {[%clk 0:01:22]}  Rae8 {[%clk 0:01:36]} 19. O-O {[%clk 0:01:20]}  Ne5 {[%clk 0:01:32]} 20. Be2 {[%clk 0:01:20]}  g6 {[%clk 0:01:27]} 21. Qf4 {[%clk 0:01:14]}  Qh3 {[%clk 0:01:18]} 22. Rfd1 {[%clk 0:01:06]}  Bb8 {[%clk 0:01:13]} 23. Qh4 {[%clk 0:01:02]}  Qxh4 {[%clk 0:01:08]} 24. gxh4 {[%clk 0:01:03]}  Rd8 {[%clk 0:01:06]} 25. f4 {[%clk 0:00:54]}  Nc6 {[%clk 0:01:03]} 26. Bf6 {[%clk 0:00:53]}  Rd6 {[%clk 0:00:46]} 27. Rxd6 {[%clk 0:00:48]}  Bxd6 {[%clk 0:00:46]} 28. Bf3 {[%clk 0:00:46]}  Ne7 {[%clk 0:00:35]} 29. Bxb7 {[%clk 0:00:44]}  Rb8 {[%clk 0:00:27]} 30. Bf3 {[%clk 0:00:39]}  Nf5 {[%clk 0:00:24]} 31. Kf2 {[%clk 0:00:37]}  Re8 {[%clk 0:00:16]} 32. Rc3 {[%clk 0:00:28]}  Nxe3 {[%clk 0:00:13]} 33. Bd4 {[%clk 0:00:16]}  Nf5 {[%clk 0:00:11]} 34. Bxa7 {[%clk 0:00:16]}  Bxf4 {[%clk 0:00:10]} 35. a4 {[%clk 0:00:15]}  Bxh2 {[%clk 0:00:09]} 36. a5 {[%clk 0:00:15]}  Bg3+ {[%clk 0:00:10]} 37. Kg2 {[%clk 0:00:14]}  Be1 {[%clk 0:00:09]} 38. Rc5 {[%clk 0:00:13]}  Nxh4+ {[%clk 0:00:09]} 39. Kf1 {[%clk 0:00:12]}  Nxf3 {[%clk 0:00:09]} 40. Bb6 {[%clk 0:00:11]}  Nd2+ {[%clk 0:00:09]} 41. Kg2 {[%clk 0:00:11]}  Re2+ {[%clk 0:00:09]} 42. Kh3 {[%clk 0:00:10]}  Ne4 {[%clk 0:00:04]} 43. Rc8+ {[%clk 0:00:10]}  Kg7 {[%clk 0:00:05]} 44. Bd4+ {[%clk 0:00:11]}  Kh6 {[%clk 0:00:05]} 45. Kg4 {[%clk 0:00:12]}  f5+ {[%clk 0:00:05]} 46. Kh3 {[%clk 0:00:12]}  Ng5# {[%clk 0:00:03]} 0-1


[Site "https://www.chess.com"]

[Event "Titled Tuesday Blitz August 3 2021"]
[White "Gokerkan, Cem Kaan"]
[Black "AshotParvanyan"]
[WhiteFideId "6336760"]
[WhiteElo "2361"]
[BlackElo "2564"]
[Result "1-0"]
[Round "05"]
[TimeControl "180+1"]
[Date "2021.08.03"]
[WhiteClock "0:00:25"]
[BlackClock "0:00:01"]

1. e4 {[%clk 0:02:42]}  e6 {[%clk 0:02:59]} 2. d4 {[%clk 0:02:42]}  d5 {[%clk 0:02:59]} 3. Nd2 {[%clk 0:02:42]}  Be7 {[%clk 0:02:58]} 4. Ngf3 {[%clk 0:02:41]}  Nf6 {[%clk 0:02:57]} 5. Bd3 {[%clk 0:02:29]}  c5 {[%clk 0:02:55]} 6. e5 {[%clk 0:02:19]}  Nfd7 {[%clk 0:02:54]} 7. c3 {[%clk 0:02:19]}  Nc6 {[%clk 0:02:53]} 8. O-O {[%clk 0:02:18]}  h5 {[%clk 0:02:53]} 9. Re1 {[%clk 0:02:13]}  cxd4 {[%clk 0:02:51]} 10. cxd4 {[%clk 0:02:11]}  g5 {[%clk 0:02:44]} 11. Nb3 {[%clk 0:02:07]}  g4 {[%clk 0:02:39]} 12. Nfd2 {[%clk 0:02:08]}  Nb4 {[%clk 0:02:35]} 13. Bb1 {[%clk 0:02:04]}  a5 {[%clk 0:02:34]} 14. a3 {[%clk 0:02:03]}  Nc6 {[%clk 0:02:30]} 15. a4 {[%clk 0:01:53]}  Nb4 {[%clk 0:02:24]} 16. Nf1 {[%clk 0:01:49]}  b6 {[%clk 0:02:24]} 17. f4 {[%clk 0:01:41]}  gxf3 {[%clk 0:01:54]} 18. Qxf3 {[%clk 0:01:40]}  Ba6 {[%clk 0:01:54]} 19. Bd2 {[%clk 0:01:28]}  Bg5 {[%clk 0:01:50]} 20. Ne3 {[%clk 0:01:25]}  Qe7 {[%clk 0:01:36]} 21. Rc1 {[%clk 0:01:26]}  Rc8 {[%clk 0:01:03]} 22. Rxc8+ {[%clk 0:01:22]}  Bxc8 {[%clk 0:01:04]} 23. h3 {[%clk 0:00:57]}  Kd8 {[%clk 0:01:02]} 24. Nc2 {[%clk 0:00:47]}  Bxd2 {[%clk 0:00:48]} 25. Nxd2 {[%clk 0:00:48]}  Ba6 {[%clk 0:00:26]} 26. Ra3 {[%clk 0:00:41]}  Qg5 {[%clk 0:00:17]} 27. Qe3 {[%clk 0:00:33]}  Qxe3+ {[%clk 0:00:11]} 28. Rxe3 {[%clk 0:00:34]}  Nxc2 {[%clk 0:00:10]} 29. Bxc2 {[%clk 0:00:35]}  Ke7 {[%clk 0:00:07]} 30. Rc3 {[%clk 0:00:33]}  Kd8 {[%clk 0:00:03]} 31. Bd1 {[%clk 0:00:29]}  h4 {[%clk 0:00:03]} 32. Nf3 {[%clk 0:00:28]}  Nf8 {[%clk 0:00:02]} 33. Rc6 {[%clk 0:00:27]}  Nd7 {[%clk 0:00:01]} 34. Ng5 {[%clk 0:00:27]}  Bb7 {[%clk 0:00:01]} 35. Nxf7+ {[%clk 0:00:23]}  Ke7 {[%clk 0:00:01]} 36. Nxh8 {[%clk 0:00:23]}  Bxc6 {[%clk 0:00:02]} 37. Ng6+ {[%clk 0:00:24]}  Kf7 {[%clk 0:00:01]} 38. Nxh4 {[%clk 0:00:25]} 1-0


[Site "https://www.chess.com"]

[Event "Titled Tuesday Blitz August 3 2021"]
[White "Golubev, Mikhail"]
[Black "Mekhitarian, Krikor Sevag"]
[WhiteFideId "14100983"]
[BlackFideId "2107660"]
[WhiteElo "2374"]
[BlackElo "2598"]
[Result "1-0"]
[Round "05"]
[TimeControl "180+1"]
[Date "2021.08.03"]
[WhiteClock "0:00:09"]
[BlackClock "0:00:01"]

1. e4 {[%clk 0:03:00]}  c5 {[%clk 0:02:59]} 2. Nf3 {[%clk 0:03:01]}  g6 {[%clk 0:02:58]} 3. d4 {[%clk 0:02:58]}  cxd4 {[%clk 0:02:59]} 4. Nxd4 {[%clk 0:02:59]}  Nc6 {[%clk 0:02:59]} 5. Nc3 {[%clk 0:02:59]}  Bg7 {[%clk 0:02:59]} 6. Be3 {[%clk 0:02:59]}  Nf6 {[%clk 0:02:59]} 7. Nxc6 {[%clk 0:02:54]}  bxc6 {[%clk 0:03:00]} 8. e5 {[%clk 0:02:54]}  Ng8 {[%clk 0:03:00]} 9. Bd4 {[%clk 0:02:53]}  Qc7 {[%clk 0:03:00]} 10. f4 {[%clk 0:02:37]}  Nh6 {[%clk 0:02:58]} 11. e6 {[%clk 0:02:13]}  O-O {[%clk 0:02:26]} 12. Bxg7 {[%clk 0:02:09]}  Kxg7 {[%clk 0:02:27]} 13. exd7 {[%clk 0:01:51]}  Bxd7 {[%clk 0:02:27]} 14. Qd4+ {[%clk 0:01:50]}  Kg8 {[%clk 0:02:26]} 15. O-O-O {[%clk 0:01:50]}  Rad8 {[%clk 0:02:26]} 16. Be2 {[%clk 0:01:34]}  Be6 {[%clk 0:02:01]} 17. Qf2 {[%clk 0:01:23]}  Rb8 {[%clk 0:01:58]} 18. Rd4 {[%clk 0:01:17]}  Qa5 {[%clk 0:01:55]} 19. Ra4 {[%clk 0:01:15]}  Qb6 {[%clk 0:01:48]} 20. Qxb6 {[%clk 0:01:14]}  axb6 {[%clk 0:01:49]} 21. Ra7 {[%clk 0:01:14]}  Nf5 {[%clk 0:01:25]} 22. Bg4 {[%clk 0:01:08]}  Rfe8 {[%clk 0:01:20]} 23. Re1 {[%clk 0:01:07]}  Kf8 {[%clk 0:01:08]} 24. Ne4 {[%clk 0:00:58]}  h6 {[%clk 0:01:05]} 25. b3 {[%clk 0:00:54]}  Red8 {[%clk 0:00:48]} 26. a4 {[%clk 0:00:49]}  Nd4 {[%clk 0:00:40]} 27. Bxe6 {[%clk 0:00:46]}  Nxe6 {[%clk 0:00:41]} 28. g3 {[%clk 0:00:46]}  Rd5 {[%clk 0:00:33]} 29. Rd1 {[%clk 0:00:42]}  Nd4 {[%clk 0:00:23]} 30. Nc3 {[%clk 0:00:38]}  Rdd8 {[%clk 0:00:22]} 31. Kb2 {[%clk 0:00:37]}  b5 {[%clk 0:00:19]} 32. axb5 {[%clk 0:00:33]}  cxb5 {[%clk 0:00:20]} 33. Rd3 {[%clk 0:00:31]}  b4 {[%clk 0:00:20]} 34. Nd1 {[%clk 0:00:27]}  Rbc8 {[%clk 0:00:19]} 35. Ne3 {[%clk 0:00:27]}  Nf3 {[%clk 0:00:17]} 36. Rxd8+ {[%clk 0:00:27]}  Rxd8 {[%clk 0:00:18]} 37. Rb7 {[%clk 0:00:27]}  Nxh2 {[%clk 0:00:17]} 38. Rxb4 {[%clk 0:00:27]}  h5 {[%clk 0:00:18]} 39. Rc4 {[%clk 0:00:26]}  Rb8 {[%clk 0:00:17]} 40. b4 {[%clk 0:00:26]}  Nf3 {[%clk 0:00:17]} 41. Kc3 {[%clk 0:00:26]}  e5 {[%clk 0:00:17]} 42. Nd5 {[%clk 0:00:24]}  exf4 {[%clk 0:00:16]} 43. Rxf4 {[%clk 0:00:22]}  Ng5 {[%clk 0:00:14]} 44. Nc7 {[%clk 0:00:21]}  Ke7 {[%clk 0:00:12]} 45. b5 {[%clk 0:00:20]}  Kd7 {[%clk 0:00:13]} 46. Rc4 {[%clk 0:00:20]}  f5 {[%clk 0:00:11]} 47. Kd4 {[%clk 0:00:19]}  Ne4 {[%clk 0:00:08]} 48. Kd5 {[%clk 0:00:15]}  Nxg3 {[%clk 0:00:07]} 49. Rc6 {[%clk 0:00:12]}  Ne4 {[%clk 0:00:06]} 50. b6 {[%clk 0:00:12]}  g5 {[%clk 0:00:02]} 51. Na6 {[%clk 0:00:12]}  Rb7 {[%clk 0:00:01]} 52. Nc5+ {[%clk 0:00:09]}  Nxc5 {[%clk 0:00:01]} 53. Kxc5 {[%clk 0:00:09]} 1-0


[Site "https://www.chess.com"]

[Event "Titled Tuesday Blitz August 3 2021"]
[White "Grabinsky, Aaron"]
[Black "Anuj Shrivatri"]
[WhiteFideId "2087090"]
[BlackFideId "35070924"]
[WhiteElo "2353"]
[BlackElo "2038"]
[Result "1-0"]
[Round "05"]
[TimeControl "180+1"]
[Date "2021.08.03"]
[WhiteClock "0:00:15"]
[BlackClock "0:00:04"]

1. e4 {[%clk 0:03:00]}  d6 {[%clk 0:02:55]} 2. Nc3 {[%clk 0:03:00]}  Nf6 {[%clk 0:02:55]} 3. Bc4 {[%clk 0:03:00]}  g6 {[%clk 0:02:54]} 4. d3 {[%clk 0:02:58]}  Bg7 {[%clk 0:02:54]} 5. f4 {[%clk 0:02:59]}  c5 {[%clk 0:02:54]} 6. Nf3 {[%clk 0:02:59]}  Nc6 {[%clk 0:02:43]} 7. O-O {[%clk 0:02:59]}  O-O {[%clk 0:02:43]} 8. h3 {[%clk 0:02:59]}  a6 {[%clk 0:02:42]} 9. Qe1 {[%clk 0:02:58]}  b5 {[%clk 0:02:42]} 10. Bb3 {[%clk 0:02:59]}  e6 {[%clk 0:02:35]} 11. Qh4 {[%clk 0:02:58]}  Nd7 {[%clk 0:02:31]} 12. Qf2 {[%clk 0:02:51]}  Nd4 {[%clk 0:02:30]} 13. Nxd4 {[%clk 0:02:49]}  cxd4 {[%clk 0:02:25]} 14. Ne2 {[%clk 0:02:49]}  Qb6 {[%clk 0:02:17]} 15. f5 {[%clk 0:02:49]}  Nf6 {[%clk 0:01:47]} 16. g4 {[%clk 0:02:42]}  exf5 {[%clk 0:01:41]} 17. gxf5 {[%clk 0:02:42]}  Kh8 {[%clk 0:01:22]} 18. Bg5 {[%clk 0:02:35]}  h6 {[%clk 0:00:54]} 19. Bd2 {[%clk 0:02:12]}  a5 {[%clk 0:00:42]} 20. a3 {[%clk 0:02:09]}  a4 {[%clk 0:00:40]} 21. Ba2 {[%clk 0:02:09]}  Bd7 {[%clk 0:00:28]} 22. Kh2 {[%clk 0:02:07]}  Nh5 {[%clk 0:00:27]} 23. Nf4 {[%clk 0:01:57]}  Be5 {[%clk 0:00:26]} 24. Kh1 {[%clk 0:01:56]}  Nxf4 {[%clk 0:00:25]} 25. Bxf4 {[%clk 0:01:57]}  g5 {[%clk 0:00:25]} 26. Bxe5+ {[%clk 0:01:48]}  dxe5 {[%clk 0:00:26]} 27. f6 {[%clk 0:01:49]}  Be6 {[%clk 0:00:24]} 28. h4 {[%clk 0:01:46]}  Rg8 {[%clk 0:00:21]} 29. Rg1 {[%clk 0:01:45]}  Bxa2 {[%clk 0:00:20]} 30. Rxa2 {[%clk 0:01:41]}  Qe6 {[%clk 0:00:20]} 31. Raa1 {[%clk 0:01:31]}  g4 {[%clk 0:00:21]} 32. Raf1 {[%clk 0:01:23]}  Rg6 {[%clk 0:00:20]} 33. Qf5 {[%clk 0:01:20]}  Re8 {[%clk 0:00:21]} 34. Kh2 {[%clk 0:01:12]}  Qxf5 {[%clk 0:00:21]} 35. Rxf5 {[%clk 0:01:12]}  Re6 {[%clk 0:00:21]} 36. Rgf1 {[%clk 0:01:11]}  Kg8 {[%clk 0:00:21]} 37. Kg3 {[%clk 0:01:11]}  Kf8 {[%clk 0:00:20]} 38. h5 {[%clk 0:01:08]}  Rg8 {[%clk 0:00:20]} 39. Rh1 {[%clk 0:01:06]}  Ke8 {[%clk 0:00:20]} 40. Rh4 {[%clk 0:01:06]}  Kd7 {[%clk 0:00:19]} 41. Rxg4 {[%clk 0:01:05]}  Rc8 {[%clk 0:00:19]} 42. Rg7 {[%clk 0:01:02]}  Rf8 {[%clk 0:00:19]} 43. Kg4 {[%clk 0:01:00]}  Ree8 {[%clk 0:00:19]} 44. Rf2 {[%clk 0:00:59]}  Ke6 {[%clk 0:00:19]} 45. Kh4 {[%clk 0:00:56]}  Rc8 {[%clk 0:00:19]} 46. Rh7 {[%clk 0:00:55]}  Rh8 {[%clk 0:00:19]} 47. Rg7 {[%clk 0:00:52]}  Rc7 {[%clk 0:00:19]} 48. Rgg2 {[%clk 0:00:51]}  Rhc8 {[%clk 0:00:19]} 49. Kh3 {[%clk 0:00:49]}  b4 {[%clk 0:00:19]} 50. axb4 {[%clk 0:00:49]}  Rb8 {[%clk 0:00:20]} 51. Rf1 {[%clk 0:00:44]}  Rxb4 {[%clk 0:00:20]} 52. Ra1 {[%clk 0:00:45]}  Rc6 {[%clk 0:00:17]} 53. Rf2 {[%clk 0:00:42]}  Rcb6 {[%clk 0:00:16]} 54. Kg4 {[%clk 0:00:39]}  R6b5 {[%clk 0:00:15]} 55. Ra3 {[%clk 0:00:36]}  Rb6 {[%clk 0:00:15]} 56. c3 {[%clk 0:00:35]}  dxc3 {[%clk 0:00:14]} 57. bxc3 {[%clk 0:00:33]}  Rb3 {[%clk 0:00:14]} 58. Rfa2 {[%clk 0:00:31]}  Rxa3 {[%clk 0:00:11]} 59. Rxa3 {[%clk 0:00:32]}  Ra6 {[%clk 0:00:11]} 60. d4 {[%clk 0:00:28]}  Kxf6 {[%clk 0:00:11]} 61. d5 {[%clk 0:00:26]}  Ke7 {[%clk 0:00:12]} 62. Kf5 {[%clk 0:00:25]}  f6 {[%clk 0:00:09]} 63. Kg6 {[%clk 0:00:22]}  Ra5 {[%clk 0:00:06]} 64. c4 {[%clk 0:00:21]}  Kd6 {[%clk 0:00:06]} 65. Kxf6 {[%clk 0:00:20]}  Ra8 {[%clk 0:00:06]} 66. Kg6 {[%clk 0:00:19]}  Kc5 {[%clk 0:00:06]} 67. Kxh6 {[%clk 0:00:18]}  Kxc4 {[%clk 0:00:06]} 68. Kg7 {[%clk 0:00:17]}  Ra7+ {[%clk 0:00:06]} 69. Kg6 {[%clk 0:00:17]}  Ra6+ {[%clk 0:00:06]} 70. Kf7 {[%clk 0:00:16]}  Ra7+ {[%clk 0:00:06]} 71. Ke6 {[%clk 0:00:16]}  Kd4 {[%clk 0:00:05]} 72. d6 {[%clk 0:00:16]}  Ra6 {[%clk 0:00:06]} 73. Ke7 {[%clk 0:00:15]}  Kxe4 {[%clk 0:00:04]} 74. d7 {[%clk 0:00:15]}  Ra7 {[%clk 0:00:04]} 75. Ke8 {[%clk 0:00:15]} 1-0


[Site "https://www.chess.com"]

[Event "Titled Tuesday Blitz August 3 2021"]
[White "Gunina, Valentina"]
[Black "Al-Tarboush, Ward"]
[WhiteFideId "4167570"]
[BlackFideId "7601450"]
[WhiteElo "2399"]
[BlackElo "2319"]
[Result "1-0"]
[Round "05"]
[TimeControl "180+1"]
[Date "2021.08.03"]
[WhiteClock "0:00:14"]
[BlackClock "0:00:03"]

1. d4 {[%clk 0:03:00]}  b6 {[%clk 0:02:58]} 2. c4 {[%clk 0:02:56]}  Bb7 {[%clk 0:02:58]} 3. Nc3 {[%clk 0:02:55]}  Nf6 {[%clk 0:02:58]} 4. d5 {[%clk 0:02:51]}  e6 {[%clk 0:02:58]} 5. e4 {[%clk 0:02:51]}  Bb4 {[%clk 0:02:57]} 6. Bd3 {[%clk 0:02:51]}  d6 {[%clk 0:02:47]} 7. Ne2 {[%clk 0:02:50]}  Nbd7 {[%clk 0:02:46]} 8. O-O {[%clk 0:02:50]}  Ne5 {[%clk 0:02:45]} 9. Bb1 {[%clk 0:02:47]}  a5 {[%clk 0:02:39]} 10. Nb5 {[%clk 0:02:38]}  O-O {[%clk 0:02:23]} 11. Qc2 {[%clk 0:02:14]}  Re8 {[%clk 0:02:03]} 12. f4 {[%clk 0:02:07]}  Bc5+ {[%clk 0:02:03]} 13. Kh1 {[%clk 0:02:07]}  Neg4 {[%clk 0:02:02]} 14. e5 {[%clk 0:02:04]}  dxe5 {[%clk 0:02:00]} 15. fxe5 {[%clk 0:02:05]}  Nxe5 {[%clk 0:02:01]} 16. Bg5 {[%clk 0:01:59]}  Ng6 {[%clk 0:01:56]} 17. h4 {[%clk 0:01:28]}  exd5 {[%clk 0:01:24]} 18. h5 {[%clk 0:01:27]}  Nf8 {[%clk 0:01:24]} 19. Bxf6 {[%clk 0:01:09]}  gxf6 {[%clk 0:01:22]} 20. Qf5 {[%clk 0:01:09]}  Re5 {[%clk 0:01:07]} 21. Qf3 {[%clk 0:01:09]}  dxc4 {[%clk 0:01:00]} 22. Qh3 {[%clk 0:00:53]}  Qd2 {[%clk 0:00:50]} 23. Nbc3 {[%clk 0:00:49]}  Rae8 {[%clk 0:00:40]} 24. Ng3 {[%clk 0:00:23]}  Re1 {[%clk 0:00:16]} 25. Be4 {[%clk 0:00:21]}  Rxa1 {[%clk 0:00:10]} 26. Rxa1 {[%clk 0:00:21]}  Qxb2 {[%clk 0:00:05]} 27. Rf1 {[%clk 0:00:19]}  Qxc3 {[%clk 0:00:04]} 28. Bxb7 {[%clk 0:00:18]}  Qd3 {[%clk 0:00:03]} 29. Qg4+ {[%clk 0:00:17]}  Kh8 {[%clk 0:00:03]} 30. Be4 {[%clk 0:00:17]}  Qe3 {[%clk 0:00:02]} 31. Bd5 {[%clk 0:00:14]}  Ng6 {[%clk 0:00:02]} 32. hxg6 {[%clk 0:00:14]}  hxg6 {[%clk 0:00:03]} 33. Qh4+ {[%clk 0:00:13]}  Kg7 {[%clk 0:00:03]} 34. Qxf6+ {[%clk 0:00:13]}  Kh6 {[%clk 0:00:03]} 35. Qh4+ {[%clk 0:00:13]}  Kg7 {[%clk 0:00:03]} 36. Rxf7+ {[%clk 0:00:14]} 1-0


[Site "https://www.chess.com"]